bitfinex/quotes_BTCUSD_20260103
["timestamp","ask_amount","ask_price","bid_price","bid_amount"]
[1767446354392,0.01112,89980.0,89977.0,0.01111395]
[1767446355243,0.01112,89980.0,89975.0,0.06668476]
[1767446355404,0.01112,89980.0,89976.0,0.01111407]
[1767446355615,0.06438631,89991.0,89982.0,0.01111333]
[1767446355801,0.01112,89987.0,89982.0,0.01111333]
[1767446356159,0.02223271,89987.0,89982.0,0.01111333]
[1767446356305,0.02223271,89987.0,89981.0,0.01111345]
[1767446356955,0.01111283,89986.0,89982.0,0.01111333]
[1767446357164,0.01111283,89986.0,89981.0,0.01111345]
[1767446357330,0.01111296,89985.0,89981.0,0.01111345]
[1767446357669,0.01111283,89986.0,89981.0,0.01111345]
[1767446357877,0.01111283,89986.0,89982.0,0.01111333]
[1767446358083,0.01111283,89986.0,89981.0,0.01111345]
[1767446358442,0.02223271,89987.0,89982.0,0.01111333]
[1767446360501,0.01112,89987.0,89984.0,0.01111308]
[1767446360698,0.01112,89986.0,89983.0,0.01111321]
[1767446361494,0.01112,89986.0,89984.0,0.01111308]
[1767446361658,0.01112,89987.0,89986.0,0.01111283]
[1767446362794,0.01102939,89987.0,89986.0,0.01111283]
[1767446364887,0.01102939,89987.0,89986.0,0.01011383]
[1767446365087,0.01102939,89987.0,89978.0,0.01111382]
[1767446365323,0.0221421,89987.0,89982.0,0.01111333]
[1767446365515,0.0221421,89987.0,89981.0,0.01111345]
[1767446366026,0.01111283,89986.0,89980.0,0.01111358]
[1767446366733,0.01111283,89986.0,89981.0,0.01111345]
[1767446367211,0.01111296,89985.0,89980.0,0.01111358]
[1767446367412,0.01111283,89986.0,89980.0,0.01111358]
[1767446368386,0.01111296,89985.0,89980.0,0.01111358]
[1767446368556,0.01111283,89986.0,89981.0,0.01111345]
[1767446368937,0.01111296,89985.0,89981.0,0.01111345]
[1767446369184,0.0221421,89987.0,89982.0,0.01111333]
[1767446369394,0.01111283,89986.0,89981.0,0.01111345]
[1767446370571,0.01102222,89986.0,89982.0,0.01111333]
[1767446370919,0.01102222,89986.0,89982.0,0.0100294]
[1767446371134,0.0221421,89987.0,89982.0,0.0100294]
[1767446372195,0.01111283,89986.0,89982.0,0.0008]
[1767446374230,0.01111296,89985.0,89982.0,0.0008]
[1767446380181,0.06667822,89985.0,89982.0,0.0008]
[1767446380983,0.01111296,89985.0,89982.0,0.0008]
[1767446381164,0.06667831,89985.0,89982.0,0.0008]
[1767446383570,0.01111296,89985.0,89982.0,0.0008]
[1767446383904,0.01102939,89987.0,89985.0,0.000999]
[1767446384122,0.01102939,89987.0,89983.0,0.01111321]
[1767446385081,0.01003039,89987.0,89982.0,0.06747949]
[1767446385491,0.01003039,89987.0,89984.0,0.01111308]
[1767446386405,0.01003039,89987.0,89983.0,0.01111321]
[1767446387324,0.01003039,89987.0,89984.0,0.01111308]
[1767446387530,0.01003039,89987.0,89983.0,0.01111321]
[1767446389435,0.01003039,89987.0,89984.0,0.01111308]
[1767446389640,0.01003039,89987.0,89983.0,0.01111321]
[1767446390200,0.01003039,89987.0,89984.0,0.01111308]
[1767446390538,0.01003039,89987.0,89983.0,0.01111321]
[1767446391390,0.01003039,89987.0,89984.0,0.01111308]
[1767446392254,0.01003039,89987.0,89983.0,0.01111321]
[1767446394035,0.0211431,89987.0,89982.0,0.01191333]
[1767446394367,0.0211431,89987.0,89983.0,0.01111321]
[1767446394552,0.01003039,89987.0,89983.0,0.01111321]
[1767446394753,0.0211431,89987.0,89982.0,0.01191333]
[1767446396291,0.0211431,89987.0,89983.0,0.01111321]
[1767446396496,0.01003039,89987.0,89983.0,0.01111321]
[1767446398410,0.01003039,89987.0,89982.0,0.01191333]
[1767446398894,0.01003039,89987.0,89983.0,0.01111321]
[1767446400190,0.0211431,89987.0,89982.0,0.01191333]
[1767446400388,0.01003039,89987.0,89983.0,0.01111321]
[1767446400804,0.0211431,89987.0,89982.0,0.01191333]
[1767446401747,0.0211431,89987.0,89983.0,0.01111321]
[1767446401916,0.01111283,89986.0,89982.0,0.0008]
[1767446402106,0.0211431,89987.0,89982.0,0.0008]
[1767446402318,0.0211431,89987.0,89982.0,0.01191333]
[1767446402722,0.01003039,89987.0,89983.0,0.01111321]
[1767446402901,0.0211431,89987.0,89982.0,0.01191333]
[1767446403106,0.01003039,89987.0,89983.0,0.01111321]
[1767446404350,0.01003039,89987.0,89984.0,0.01111308]
[1767446407664,1e-08,89987.0,89985.0,0.05556439]
[1767446407808,1e-08,89989.0,89988.0,0.05556296]
[1767446408008,0.01112001,89989.0,89988.0,0.05556296]
[1767446408641,0.01103256,89989.0,89988.0,0.05556296]
[1767446410266,0.01096357,89989.0,89988.0,0.05556296]
[1767446410870,0.01096357,89989.0,89988.0,0.04723899]
[1767446411267,0.01096357,89989.0,89986.0,0.06667702]
[1767446413161,0.01089458,89989.0,89986.0,0.06667702]
[1767446417441,0.05721702,89989.0,89986.0,0.06667702]
[1767446417651,0.01089458,89989.0,89986.0,0.06667702]
[1767446417805,0.05721702,89989.0,89983.0,0.01111321]
[1767446418007,0.000999,89986.0,89982.0,0.01191333]
[1767446418212,0.00090838,89986.0,89982.0,0.0008]
[1767446418894,0.01111271,89987.0,89982.0,0.0008]
[1767446419296,0.01111283,89986.0,89980.0,0.01111358]
[1767446419505,0.01111283,89986.0,89981.0,0.01111345]
[1767446419707,0.01111283,89986.0,89981.0,0.01020545]
[1767446419911,0.01111296,89985.0,89980.0,0.01111358]
[1767446420583,0.03764141,89985.0,89948.0,0.0993323]
[1767446420733,0.03764141,89985.0,89933.0,0.00048383]
[1767446420734,0.29358421,89960.0,89933.0,0.00048383]
[1767446420950,0.01042085,89984.0,89959.0,0.04801196]
[1767446420951,0.05557375,89971.0,89959.0,0.04801196]
[1767446421170,0.05557375,89971.0,89953.0,0.01111691]
[1767446421171,0.01112,89974.0,89953.0,0.06670116]
[1767446421369,0.06669465,89963.0,89960.0,0.04801196]
[1767446421570,0.06669465,89963.0,89953.0,0.01111691]
[1767446421571,0.01111605,89960.0,89954.0,0.05912875]
[1767446421883,0.06669465,89963.0,89955.0,0.01111666]
[1767446421884,0.01111592,89961.0,89955.0,0.01111666]
[1767446422106,0.0111158,89962.0,89955.0,0.05912862]
[1767446422307,0.01111679,89954.0,89946.0,0.01111778]
[1767446422511,0.01111704,89952.0,89947.0,0.05913196]
[1767446422712,0.01111716,89951.0,89947.0,0.05913196]
[1767446423045,0.01111704,89952.0,89947.0,0.05913196]
[1767446423246,0.06670084,89954.0,89947.0,0.05913196]
[1767446423457,0.01111704,89952.0,89947.0,0.05923969]
[1767446423773,0.01111666,89955.0,89949.0,0.01111741]
[1767446423942,0.01111666,89955.0,89947.0,0.05923969]
[1767446423943,0.01111679,89954.0,89948.0,0.01111753]
[1767446424143,0.01111666,89955.0,89949.0,0.01111741]
[1767446424374,0.01111666,89955.0,89947.0,0.05923734]
[1767446424375,0.05558334,89955.0,89950.0,0.01112]
[1767446424585,0.01111691,89953.0,89950.0,0.01112]
[1767446425414,0.04446458,89954.0,89950.0,0.010124]
[1767446425716,0.0555852,89952.0,89950.0,0.010124]
[1767446426121,0.01111691,89953.0,89950.0,0.010124]
[1767446427066,0.06670205,89953.0,89950.0,0.010124]
[1767446429871,0.01011791,89953.0,89950.0,0.05579997]
[1767446430709,0.06669936,89956.0,89950.0,0.010124]
[1767446431132,0.01111666,89955.0,89950.0,0.010124]
[1767446431331,0.01111654,89956.0,89950.0,0.010124]
[1767446432154,0.01111666,89955.0,89950.0,0.010124]
[1767446432947,0.06669987,89956.0,89955.0,0.01111691]
[1767446433179,0.06669987,89956.0,89955.0,0.01011791]
[1767446434220,0.06669987,89956.0,89949.0,0.01111741]
[1767446434441,0.06669987,89956.0,89950.0,0.01112]
[1767446435430,0.06669987,89956.0,89949.0,0.01111741]
[1767446435431,0.06669987,89956.0,89951.0,0.01112]
[1767446435631,0.06669654,89956.0,89951.0,0.05679597]
[1767446435864,0.01111679,89954.0,89951.0,0.05679597]
[1767446436012,0.01111679,89954.0,89951.0,0.01112]
[1767446438057,0.01111666,89955.0,89951.0,0.01112]
[1767446441028,0.01111629,89958.0,89955.0,0.000999]
[1767446441321,0.01111629,89958.0,89951.0,0.02223716]
[1767446441322,0.01111654,89956.0,89951.0,0.02223716]
[1767446441486,0.01111629,89958.0,89952.0,0.01111704]
[1767446441687,0.01111654,89956.0,89951.0,0.02223716]
[1767446441875,0.01111666,89955.0,89951.0,0.01112]
[1767446442076,0.01111654,89956.0,89951.0,0.02223716]
[1767446444130,0.01111666,89955.0,89951.0,0.01112]
[1767446444348,0.01111629,89958.0,89951.0,0.02223716]
[1767446444668,0.01111629,89958.0,89952.0,0.01111704]
[1767446445496,0.01111629,89958.0,89953.0,0.01111691]
[1767446445929,0.01111642,89957.0,89952.0,0.01111704]
[1767446446117,0.01111642,89957.0,89951.0,0.02223716]
[1767446446673,0.01111642,89957.0,89952.0,0.01111704]
[1767446447230,0.01111629,89958.0,89952.0,0.01111704]
[1767446448468,0.06669859,89957.0,89951.0,0.02223716]
[1767446448786,0.01111654,89956.0,89951.0,0.06791313]
[1767446450116,0.01111642,89957.0,89952.0,0.01111704]
[1767446450445,0.01111642,89957.0,89951.0,0.06791313]
[1767446450446,0.01111654,89956.0,89951.0,0.06791313]
[1767446450650,0.01111642,89957.0,89952.0,0.01111704]
[1767446451670,0.01111666,89955.0,89951.0,0.01112]
[1767446451864,0.01111654,89956.0,89951.0,0.01112]
[1767446452126,0.01111654,89956.0,89951.0,0.02223716]
[1767446452325,0.01111642,89957.0,89951.0,0.01112]
[1767446452516,0.01111654,89956.0,89951.0,0.02223716]
[1767446453745,0.01111679,89954.0,89951.0,0.01112]
[1767446453901,0.01111666,89955.0,89951.0,0.01112]
[1767446454104,0.01111679,89954.0,89951.0,0.01112]
[1767446454302,0.01111679,89954.0,89947.0,0.00010773]
[1767446454303,4.266e-05,89950.0,89947.0,0.00010773]
[1767446454504,0.05558561,89952.0,89948.0,0.01112]
[1767446454714,0.01111716,89951.0,89948.0,0.01112]
[1767446454919,0.01111519,89948.0,89942.0,0.01111827]
[1767446455136,0.01111519,89948.0,89943.0,0.01111815]
[1767446455435,0.01111519,89948.0,89944.0,0.01112]
[1767446455999,0.01111765,89947.0,89944.0,0.01112]
[1767446456130,0.01111765,89947.0,89913.0,0.44486982]
[1767446456131,0.01111618,89944.0,89938.0,0.01111877]
[1767446456335,0.06670674,89944.0,89939.0,0.01112]
[1767446456532,0.01111827,89942.0,89939.0,0.01112]
[1767446456756,0.01111827,89942.0,89940.0,0.01112]
[1767446457092,0.01111839,89941.0,89935.0,0.01111914]
[1767446457254,0.01111827,89942.0,89937.0,0.01111889]
[1767446457454,0.01111827,89942.0,89936.0,0.01112]
[1767446457660,0.01111827,89942.0,89937.0,0.01112]
[1767446457661,0.01111864,89939.0,89937.0,0.01112]
[1767446457871,0.01111827,89942.0,89939.0,0.000999]
[1767446458247,0.01111839,89941.0,89937.0,0.01112]
[1767446458637,0.01111827,89942.0,89937.0,0.02223889]
[1767446458839,0.01111827,89942.0,89937.0,0.01112]
[1767446459055,0.01111827,89942.0,89937.0,0.02223889]
[1767446459293,0.0111179,89945.0,89942.0,0.000999]
[1767446459871,0.05559057,89944.0,89942.0,0.01112]
[1767446460076,0.05564238,89944.0,89942.0,0.01112]
[1767446461336,0.01111778,89946.0,89944.0,0.00094719]
[1767446461572,0.0111179,89945.0,89942.0,0.0579335]
[1767446462285,0.0111179,89945.0,89942.0,0.01112]
[1767446462505,0.0101709,89945.0,89942.0,0.01112]
[1767446463382,0.01111778,89946.0,89942.0,0.01112]
[1767446463544,0.0111179,89945.0,89942.0,0.01112]
[1767446463750,0.0111179,89945.0,89942.0,0.00279645]
[1767446465298,0.06670786,89945.0,89942.0,0.00279645]
[1767446465697,0.0111179,89945.0,89942.0,0.00279645]
[1767446465898,0.0667073,89946.0,89945.0,0.0468135]
[1767446466060,0.01111753,89948.0,89945.0,0.0468135]
[1767446466261,0.01112,89958.0,89950.0,0.0468135]
[1767446466262,0.01111629,89958.0,89950.0,0.0468135]
[1767446466564,0.01111592,89961.0,89949.0,0.06670385]
[1767446466565,0.01111617,89959.0,89953.0,0.0468135]
[1767446466768,0.01111642,89957.0,89953.0,0.0468135]
[1767446466960,0.01111654,89956.0,89953.0,0.0468135]
[1767446467212,0.01111642,89957.0,89953.0,0.0468135]
[1767446467380,0.01111654,89956.0,89953.0,0.0468135]
[1767446467590,0.05558334,89955.0,89953.0,0.0468135]
[1767446467926,0.01111654,89956.0,89953.0,0.0458145]
[1767446472213,0.01111642,89957.0,89953.0,0.0458145]
[1767446473733,0.01111642,89957.0,89952.0,0.01111704]
[1767446473887,0.01111629,89958.0,89953.0,0.01111691]
[1767446474100,0.01111654,89956.0,89952.0,0.0468135]
[1767446474355,0.01111642,89957.0,89952.0,0.05793054]
[1767446474552,0.01111642,89957.0,89952.0,0.01111704]
[1767446475319,0.01111654,89956.0,89951.0,0.02223716]
[1767446475723,0.00994929,89956.0,89952.0,0.01111704]
[1767446475928,0.06669839,89958.0,89956.0,0.000999]
[1767446476320,0.01111642,89957.0,89952.0,0.01111704]
[1767446476897,0.01111654,89956.0,89952.0,0.01111704]
[1767446478719,0.0111158,89962.0,89956.0,0.000999]
[1767446478920,0.01111568,89963.0,89956.0,0.01111654]
[1767446479145,0.0111158,89962.0,89955.0,0.05793016]
[1767446479306,0.0111158,89962.0,89957.0,0.01111642]
[1767446479505,0.01111592,89961.0,89956.0,0.01111654]
[1767446479742,0.0111158,89962.0,89956.0,0.01111654]
[1767446479953,0.01111592,89961.0,89956.0,0.01111654]
[1767446480559,0.06669132,89967.0,89957.0,0.01111642]
[1767446480796,0.05557593,89967.0,89960.0,0.01111605]
[1767446480926,0.01111555,89964.0,89959.0,0.01111617]
[1767446481134,0.01111543,89965.0,89958.0,0.01111629]
[1767446481336,0.01111555,89964.0,89958.0,0.01111629]
[1767446481546,0.01111543,89965.0,89959.0,0.01111617]
[1767446481748,0.02223506,89968.0,89960.0,0.01111605]
[1767446481947,0.44444565,90000.0,89965.0,0.01111543]
[1767446481948,0.01111456,89972.0,89965.0,0.01111543]
[1767446482178,0.01111456,89972.0,89963.0,0.01111568]
[1767446482179,0.000999,89965.0,89963.0,0.01111568]
[1767446482596,0.01111493,89969.0,89964.0,0.01111555]
[1767446483493,0.01111493,89969.0,89961.0,0.01111592]
[1767446483494,0.000999,89964.0,89961.0,0.01111592]
[1767446483666,0.01111518,89967.0,89962.0,0.0111158]
[1767446483842,0.01111506,89968.0,89963.0,0.01111568]
[1767446484051,0.01111518,89967.0,89962.0,0.0111158]
[1767446484563,0.01111518,89967.0,89962.0,0.0101168]
[1767446484782,0.01111531,89966.0,89962.0,0.0101168]
[1767446484975,0.01111531,89966.0,89961.0,0.01111592]
[1767446485341,0.01111531,89966.0,89962.0,0.0111158]
[1767446485878,0.01111506,89968.0,89963.0,0.01111568]
[1767446486174,0.01111493,89969.0,89963.0,0.01111568]
[1767446486175,0.01111493,89969.0,89964.0,0.01111555]
[1767446487009,0.06668931,89970.0,89964.0,0.01111555]
[1767446487010,0.01111481,89970.0,89965.0,0.01111543]
[1767446488082,0.01111493,89969.0,89965.0,0.01111543]
[1767446488283,0.01111506,89968.0,89963.0,0.01111568]
[1767446489478,0.01111493,89969.0,89964.0,0.01111555]
[1767446490047,0.01111506,89968.0,89963.0,0.01111568]
[1767446490401,0.01111493,89969.0,89964.0,0.01111555]
[1767446491213,0.01111506,89968.0,89963.0,0.01111568]
[1767446491416,0.01111493,89969.0,89964.0,0.01111555]
[1767446493065,0.01111493,89969.0,89963.0,0.01111568]
[1767446493853,0.01111506,89968.0,89963.0,0.01097257]
[1767446494533,0.01111506,89968.0,89963.0,0.01082947]
[1767446496265,0.01111506,89968.0,89964.0,0.01111555]
[1767446497938,0.01111493,89969.0,89964.0,0.01111555]
[1767446499922,0.01011593,89969.0,89964.0,0.01111555]
[1767446503213,0.01011593,89969.0,89965.0,0.01111543]
[1767446503416,0.01011593,89969.0,89964.0,0.01111555]
[1767446504907,0.01011593,89969.0,89965.0,0.01111543]
[1767446506561,0.01011593,89969.0,89964.0,0.01111555]
[1767446506873,0.01111481,89970.0,89965.0,0.01111543]
[1767446507265,0.01111481,89970.0,89964.0,0.01111555]
[1767446507266,0.01111493,89969.0,89964.0,0.01111555]
[1767446507732,0.01111481,89970.0,89965.0,0.01111543]
[1767446507955,0.01111493,89969.0,89964.0,0.01111555]
[1767446511884,0.01111518,89967.0,89962.0,0.0111158]
[1767446512111,0.01111518,89967.0,89963.0,0.01111568]
[1767446512325,0.01111506,89968.0,89963.0,0.01111568]
[1767446515801,0.01111506,89968.0,89964.0,0.01111555]
[1767446517203,0.01111481,89970.0,89965.0,0.01111543]
[1767446517567,0.01111493,89969.0,89964.0,0.01111555]
[1767446517797,0.01111493,89969.0,89965.0,0.01111543]
[1767446517995,0.00030768,89972.0,89966.0,0.01111531]
[1767446518199,0.00030768,89972.0,89969.0,0.01111493]
[1767446518718,0.00030768,89972.0,89968.0,0.01111506]
[1767446519055,0.01142224,89972.0,89966.0,0.01111531]
[1767446519345,0.01142224,89972.0,89967.0,0.01111518]
[1767446519562,0.01142224,89972.0,89966.0,0.06669146]
[1767446519724,0.00030768,89972.0,89967.0,0.01111518]
[1767446520784,0.00030768,89972.0,89968.0,0.01111506]
[1767446521419,0.00030768,89972.0,89967.0,0.01111518]
[1767446521674,0.01111469,89971.0,89967.0,0.01111518]
[1767446522110,0.01111469,89971.0,89965.0,0.01111543]
[1767446522367,0.01111481,89970.0,89965.0,0.01011643]
[1767446523347,0.01111493,89969.0,89964.0,0.01111555]
[1767446526774,0.01111481,89970.0,89965.0,0.01111543]
[1767446526985,0.01111469,89971.0,89967.0,0.01111518]
[1767446527210,0.01111469,89971.0,89966.0,0.01111531]
[1767446527591,0.01111481,89970.0,89965.0,0.01111543]
[1767446527854,0.01111469,89971.0,89966.0,0.01111531]
[1767446528091,0.00030768,89972.0,89968.0,0.01111506]
[1767446528327,0.01142224,89972.0,89967.0,0.01111518]
[1767446528569,0.00030768,89972.0,89968.0,0.01111506]
[1767446528810,0.01142224,89972.0,89968.0,0.01111506]
[1767446529261,0.00030768,89972.0,89968.0,0.01111506]
[1767446529427,0.00015,89980.0,89974.0,0.01111432]
[1767446529633,0.0111137,89979.0,89974.0,0.01111432]
[1767446529835,0.01111395,89977.0,89972.0,0.01111456]
[1767446530011,0.01111395,89977.0,89973.0,0.01111444]
[1767446530224,0.01111395,89977.0,89972.0,0.01111456]
[1767446530763,0.01111395,89977.0,89971.0,0.01111469]
[1767446531707,0.01111407,89976.0,89971.0,0.01111469]
[1767446531908,0.01111407,89976.0,89971.0,0.05825927]
[1767446533060,0.01111419,89975.0,89971.0,0.04614558]
[1767446533261,0.01111419,89975.0,89971.0,0.05726027]
[1767446533465,0.01111419,89975.0,89971.0,0.04614558]
[1767446533761,0.01111407,89976.0,89971.0,0.01111469]
[1767446535031,0.01111419,89975.0,89970.0,0.01111481]
[1767446536463,0.01111407,89976.0,89971.0,0.01111469]
[1767446536879,0.01111382,89978.0,89976.0,0.000999]
[1767446537297,0.01111382,89978.0,89973.0,0.01111444]
[1767446537727,0.01111382,89978.0,89972.0,0.04992077]
[1767446538204,0.01111407,89976.0,89972.0,0.03880621]
[1767446538399,0.01111407,89976.0,89972.0,0.04992077]
[1767446538738,0.01111395,89977.0,89972.0,0.04992077]
[1767446540036,0.01111395,89977.0,89973.0,0.01111444]
[1767446540251,0.01111395,89977.0,89972.0,0.04992077]
[1767446540657,0.01111407,89976.0,89972.0,0.03880621]
[1767446540842,0.01111419,89975.0,89972.0,0.03880621]
[1767446541604,0.01111419,89975.0,89970.0,0.05825939]
[1767446542111,0.01111382,89978.0,89973.0,0.05825902]
[1767446542410,0.0111137,89979.0,89973.0,0.05825902]
[1767446542552,0.01111382,89978.0,89974.0,0.04714458]
[1767446543185,0.01135131,89980.0,89975.0,0.01111419]
[1767446543425,0.01135131,89980.0,89974.0,0.0582589]
[1767446543426,0.01111382,89978.0,89974.0,0.04714458]
[1767446544411,0.01111395,89977.0,89974.0,0.04714458]
[1767446544651,0.01111382,89978.0,89974.0,0.04714458]
[1767446545389,0.01111407,89976.0,89969.0,0.05825951]
[1767446545549,0.01111407,89976.0,89970.0,0.01111481]
[1767446545550,0.01111419,89975.0,89970.0,0.01111481]
[1767446545746,0.01111419,89975.0,89971.0,0.01111469]
[1767446545962,0.01111419,89975.0,89970.0,0.01111481]
[1767446546140,0.01111419,89975.0,89971.0,0.01111469]
[1767446546340,0.01111419,89975.0,89970.0,0.01111481]
[1767446546909,0.01111432,89974.0,89969.0,0.01111493]
[1767446547258,0.01111432,89974.0,89970.0,0.01111481]
[1767446547958,0.01111407,89976.0,89971.0,0.01111469]
[1767446548164,0.06668411,89977.0,89972.0,0.01111456]
[1767446549268,0.01111395,89977.0,89972.0,0.01111456]
[1767446549887,0.01111407,89976.0,89971.0,0.01111469]
[1767446550791,0.01111395,89977.0,89972.0,0.01111456]
[1767446551320,0.01111395,89977.0,89973.0,0.01111444]
[1767446551753,0.01111382,89978.0,89973.0,0.01111444]
[1767446552806,0.01111382,89978.0,89972.0,0.01111456]
[1767446553930,0.01111382,89978.0,89973.0,0.01111444]
[1767446554129,0.0111137,89979.0,89974.0,0.01111432]
[1767446554333,0.01135131,89980.0,89976.0,0.01111407]
[1767446554530,0.01135131,89980.0,89975.0,0.01111419]
[1767446555179,0.0111137,89979.0,89974.0,0.01111432]
[1767446555354,0.01135131,89980.0,89974.0,0.01111432]
[1767446556175,0.01009871,89979.0,89974.0,0.01111432]
[1767446556699,0.06691921,89980.0,89979.0,0.000999]
[1767446556845,0.0111137,89979.0,89974.0,0.01111432]
[1767446558920,0.0111137,89979.0,89973.0,0.01111444]
[1767446559143,0.01111382,89978.0,89973.0,0.01111444]
[1767446559416,0.01111382,89978.0,89974.0,0.01111432]
[1767446560033,0.0111137,89979.0,89974.0,0.01111432]
[1767446560631,0.0111137,89979.0,89974.0,0.05742038]
[1767446561358,0.0111137,89979.0,89974.0,0.01111432]
[1767446562516,0.01111382,89978.0,89973.0,0.01111444]
[1767446562692,0.01111395,89977.0,89973.0,0.01111444]
[1767446563313,0.01102647,89977.0,89973.0,0.01097133]
[1767446563889,0.01111382,89978.0,89973.0,0.01097133]
[1767446564209,0.01111382,89978.0,89974.0,0.01111432]
[1767446564621,0.0111137,89979.0,89974.0,0.01111432]
[1767446565181,0.01135131,89980.0,89975.0,0.01111419]
[1767446565423,0.0111137,89979.0,89974.0,0.01111432]
[1767446565671,0.0111137,89979.0,89975.0,0.01111419]
[1767446566164,0.01135131,89980.0,89976.0,0.01111407]
[1767446566324,0.01135131,89980.0,89975.0,0.01111419]
[1767446566749,0.00023773,89980.0,89976.0,0.01111407]
[1767446566959,0.01135131,89980.0,89975.0,0.01111419]
[1767446567197,0.00023773,89980.0,89976.0,0.01111407]
[1767446567675,0.00023773,89980.0,89977.0,0.01111395]
[1767446567977,0.00579974,89984.0,89981.0,0.06668059]
[1767446568282,0.01111283,89986.0,89981.0,0.01111345]
[1767446572314,0.01111283,89986.0,89980.0,0.01111358]
[1767446573115,0.01111296,89985.0,89980.0,0.01111358]
[1767446575681,0.01111308,89984.0,89979.0,0.0111137]
[1767446575909,0.01111308,89984.0,89980.0,0.01111358]
[1767446576095,0.0666778,89985.0,89980.0,0.01111358]
[1767446576096,0.01111296,89985.0,89980.0,0.01111358]
[1767446576439,0.01111283,89986.0,89981.0,0.01111345]
[1767446576860,0.01111283,89986.0,89981.0,0.01097032]
[1767446577847,0.01111283,89986.0,89980.0,0.01111358]
[1767446577848,0.01111296,89985.0,89980.0,0.01111358]
[1767446578209,0.01111296,89985.0,89981.0,0.01111345]
[1767446578412,0.01111283,89986.0,89981.0,0.01111345]
[1767446579699,0.01111271,89987.0,89981.0,0.01111345]
[1767446580742,0.01111283,89986.0,89981.0,0.01111345]
[1767446581155,0.01111296,89985.0,89980.0,0.01111358]
[1767446581378,0.01111283,89986.0,89981.0,0.01111345]
[1767446581974,0.01102534,89986.0,89981.0,0.01111345]
[1767446582180,0.01111283,89986.0,89982.0,0.01111333]
[1767446582567,0.01111283,89986.0,89981.0,0.01111345]
[1767446583444,0.01111296,89985.0,89980.0,0.01111358]
[1767446583621,0.01111283,89986.0,89981.0,0.01111345]
[1767446583791,0.01111271,89987.0,89982.0,0.01111333]
[1767446584381,0.01111283,89986.0,89981.0,0.01111345]
[1767446584608,0.01111271,89987.0,89982.0,0.01111333]
[1767446585895,0.01111271,89987.0,89981.0,0.01111345]
[1767446586904,0.01111259,89988.0,89983.0,0.01111321]
[1767446589389,0.01111259,89988.0,89982.0,0.01111333]
[1767446590026,0.05556358,89987.0,89981.0,0.01111345]
[1767446590776,0.01111271,89987.0,89982.0,0.01111333]
[1767446591431,0.01111283,89986.0,89981.0,0.01111345]
[1767446591986,0.01111296,89985.0,89979.0,0.0111137]
[1767446592154,0.01111296,89985.0,89980.0,0.01111358]
[1767446592336,0.01111283,89986.0,89981.0,0.01111345]
[1767446593526,0.01111296,89985.0,89981.0,0.01111345]
[1767446593732,0.01111283,89986.0,89981.0,0.01111345]
[1767446594296,0.01111296,89985.0,89980.0,0.01111358]
[1767446594500,0.01111321,89983.0,89977.0,0.05868451]
[1767446594883,0.01111321,89983.0,89978.0,0.01111382]
[1767446595258,0.01111321,89983.0,89973.0,0.02223444]
[1767446595259,0.01111345,89981.0,89973.0,0.07780647]
[1767446595455,0.01102596,89981.0,89975.0,0.01111419]
[1767446595876,0.01111333,89982.0,89975.0,0.1142557]
[1767446596088,0.01111345,89981.0,89976.0,0.01111407]
[1767446596495,0.01111345,89981.0,89975.0,0.01111419]
[1767446596496,0.01111358,89980.0,89975.0,0.01111419]
[1767446596667,0.0111137,89979.0,89974.0,0.01111432]
[1767446596867,0.0111137,89979.0,89975.0,0.01111419]
[1767446597070,0.0111137,89979.0,89974.0,0.01111432]
[1767446597648,0.01111358,89980.0,89974.0,0.06668545]
[1767446598555,0.01111358,89980.0,89976.0,0.01111407]
[1767446600015,0.01111358,89980.0,89975.0,0.01111419]
[1767446600219,0.01111358,89980.0,89976.0,0.01112]
[1767446600878,0.01111358,89980.0,89976.0,0.02223407]
[1767446601077,0.01111358,89980.0,89976.0,0.01112]
[1767446603102,0.01102609,89980.0,89976.0,0.01112]
[1767446603469,0.01111345,89981.0,89976.0,0.02223407]
[1767446603793,0.01111333,89982.0,89981.0,0.000999]
[1767446604193,0.01111333,89982.0,89977.0,0.01111395]
[1767446604778,0.01111246,89989.0,89981.0,0.06668058]
[1767446604982,0.01111259,89988.0,89981.0,0.06668058]
[1767446605180,0.01111271,89987.0,89982.0,0.01111333]
[1767446606942,0.01111271,89987.0,89983.0,0.01111321]
[1767446607428,0.01111246,89989.0,89984.0,0.01111308]
[1767446607642,0.01111259,89988.0,89987.0,0.000999]
[1767446607815,0.01111246,89989.0,89987.0,0.000999]
[1767446608018,0.05852865,89989.0,89984.0,0.01111308]
[1767446608222,0.04741619,89987.0,89983.0,0.01111321]
[1767446608605,0.01111259,89988.0,89983.0,0.01111321]
[1767446608850,0.01111246,89989.0,89984.0,0.01111308]
[1767446609050,0.01111259,89988.0,89983.0,0.01111321]
[1767446609431,0.01111271,89987.0,89982.0,0.01111333]
[1767446610173,0.01111271,89987.0,89983.0,0.01111321]
[1767446610330,0.01111271,89987.0,89982.0,0.01111333]
[1767446610665,0.01111271,89987.0,89981.0,0.01111345]
[1767446610940,0.01111283,89986.0,89981.0,0.01111345]
[1767446611313,0.01102519,89987.0,89982.0,0.01111333]
[1767446613506,0.01102519,89987.0,89981.0,0.01111345]
[1767446614390,0.01111296,89985.0,89980.0,0.01111358]
[1767446614588,0.01111296,89985.0,89981.0,0.01111345]
[1767446614825,0.01111283,89986.0,89981.0,0.01111345]
[1767446615811,0.01102519,89987.0,89982.0,0.01111333]
[1767446616127,0.01111283,89986.0,89981.0,0.01111345]
[1767446616327,0.01111296,89985.0,89980.0,0.01111358]
[1767446616765,0.01111283,89986.0,89981.0,0.01111345]
[1767446618074,0.01111296,89985.0,89980.0,0.01111358]
[1767446618483,0.01111283,89986.0,89981.0,0.01111345]
[1767446618917,0.16005378,91200.0,89981.0,0.01111345]
[1767446618918,0.01111148,89997.0,89992.0,0.01111209]
[1767446619215,0.01112,89999.0,89995.0,0.06667026]
[1767446619775,0.01112,89999.0,89995.0,0.01111172]
[1767446619986,0.02223123,89999.0,89994.0,0.01111185]
[1767446621127,0.01126135,89998.0,89993.0,0.01111197]
[1767446621330,0.01126135,89998.0,89994.0,0.01111185]
[1767446621990,0.01126135,89998.0,89993.0,0.01111197]
[1767446622417,0.00015,89998.0,89994.0,0.01111185]
[1767446623241,0.01111098,90001.0,89998.0,0.00015]
[1767446623436,0.01111086,90002.0,90001.0,0.000849]
[1767446623601,0.01111086,90002.0,89995.0,0.01111172]
[1767446623602,0.01111098,90001.0,89995.0,0.01111172]
[1767446623804,0.01111098,90001.0,89996.0,0.0111116]
[1767446624029,0.01111111,90000.0,89994.0,0.01111185]
[1767446624302,0.01111123,89999.0,89994.0,0.01111185]
[1767446625533,0.01111123,89999.0,89993.0,0.01111197]
[1767446625748,0.01111111,90000.0,89995.0,0.01111172]
[1767446625943,0.01111123,89999.0,89994.0,0.01111185]
[1767446626226,0.01111111,90000.0,89995.0,0.01111172]
[1767446627796,0.01111123,89999.0,89995.0,0.01111172]
[1767446628001,0.01111123,89999.0,89995.0,0.03336172]
[1767446628198,0.01111123,89999.0,89995.0,0.01111172]
[1767446628404,0.01111111,90000.0,89995.0,0.01111172]